Cogmind - Beta 13 @@@ ROGUE MODE // 2024.04.16 @ 08:05:37 Player: kucifra Result: Destroyed by Lightning with EMDS Performance ------------- Evolutions (4) 2000 Regions Visited (11) 2200 Robots Destroyed (91) 455 Value Destroyed (2624) 2624 Prototype IDs (27) 540 Alien Tech Used (0) 0 Bonus (825) 825 TOTAL SCORE: 8644 Bonus ------- High Alert Combat Kills 11 Follower Combat Kills 129 Network Hubs Disabled 400 Aligned with FarCom 300 Friendly Fire -15 Cogmind --------- Core Integrity 0/850 Matter 288/300 Energy 100/100 System Corruption 9% Temperature Cool (3) Movement Flying (35) Location -6/Hub_04(d) Parts ------- > --- POWER (1) -------- (None) > --- PROPULSION (4) --- Improved VTOL Module > --- UTILITY (8) ------ Machine Analyzer Enhanced Optical Array Hacking Suite Improved Hacking Suite Improved System Shield > --- WEAPON (2) ------- (None) > --- INVENTORY (5) ---- Transmission Jammer Improved Hardlight Generator Peak State ------------ > --- POWER ------------ Light Angular Momentum Engine > --- PROPULSION ------- Cesium-ion Thruster Improved VTOL Module Improved VTOL Module Improved VTOL Module > --- UTILITY ---------- Structural Scanner Machine Analyzer Enhanced Optical Array Hacking Suite Improved Hacking Suite Improved Hacking Suite Improved System Shield Improved System Shield > --- WEAPON ----------- Chainsword > --- INVENTORY -------- Improved Deuterium Engine Improved VTOL Module Improved VTOL Module Transmission Jammer Improved Hardlight Generator [Rating: 58] Favorites ----------- Power Light Nuclear Core Engine Ion Engine Power Core Light Nuclear Core Propulsion Improved VTOL Module Treads Light Treads Leg Carbon-fiber Leg Flight Unit Improved VTOL Module Utility Hacking Suite Device Structural Scanner Storage High-capacity Storage Unit Processor Machine Analyzer Hackware Hacking Suite Protection Improved Weapon Shielding Weapon Light Assault Rifle Energy Gun Advanced Beam Rifle Ballistic Gun Light Assault Rifle Launcher Missile Launcher Slashing Weapon Chainsword Build | -11 -10 -10 -10 -9 -8 -7 -6 -6 -6 -6 -6 ------- Run | Yrd Mat Min Exi Min Mat Fac Fac Ext Cet Arc Hub Slots Evolved 8 | . . . . . 4 2 2 . . . . Power . | . . . . . . . . . . . . Propulsion 2 | . . . . . 1 1 . . . . . Utility 6 | . . . . . 3 1 2 . . . . Weapon . | . . . . . . . . . . . . Parts Attached 104 | 6 10 4 2 2 46 11 11 4 2 2 4 Power 19 | 1 4 1 . 1 7 . 2 2 . 1 . Engine 13 | 1 4 1 . 1 3 . . 2 . 1 . Core 6 | . . . . . 4 . 2 . . . . Reactor . | . . . . . . . . . . . . Propulsion 31 | 2 2 . . . 16 5 1 1 2 . 2 Treads 14 | 2 2 . . . 10 . . . . . . Leg 5 | . . . . . 5 . . . . . . Wheel . | . . . . . . . . . . . . Hover . | . . . . . . . . . . . . Flight 12 | . . . . . 1 5 1 1 2 . 2 Utility 34 | 1 3 . 2 1 12 5 7 1 . 1 1 Device 6 | . . . . . 2 1 3 . . . . Storage 4 | 1 1 . 2 . . . . . . . . Processor 3 | . . . . . 1 1 1 . . . . Hackware 11 | . . . . . 2 3 3 1 . 1 1 Protection 10 | . 2 . . 1 7 . . . . . . Artifact . | . . . . . . . . . . . . Weapon 20 | 2 1 3 . . 11 1 1 . . . 1 Energy Gun 7 | . . . . . 7 . . . . . . Energy Cannon . | . . . . . . . . . . . . Ballistic Gun 7 | 2 1 2 . . 2 . . . . . . Ballistic Cannon . | . . . . . . . . . . . . Launcher 3 | . . 1 . . 1 1 . . . . . Special Weapon . | . . . . . . . . . . . . Impact Weapon . | . . . . . . . . . . . . Slashing Weapon 3 | . . . . . 1 . 1 . . . 1 Piercing Weapon . | . . . . . . . . . . . . Special Melee Weapon . | . . . . . . . . . . . . Unidentified Prototypes 3 | . . . . . 3 . . . . . . Parts Lost 39 | . . 4 . 1 17 . 3 1 . 7 6 Power 8 | . . 1 . . 3 . 1 1 . 2 . Propulsion 11 | . . . . . 6 . . . . 2 3 Utility 13 | . . 1 . 1 6 . 1 . . 2 2 Weapon 7 | . . 2 . . 2 . 1 . . 1 1 Highest Loss Streak 7 | . . 4 . 1 3 . 3 1 . 7 6 To Critical Strikes 1 | . . . . . 1 . . . . . . Average Slot Usage (%) 94 | . 99 84 89 95 93 99 97 93 93 86 56 Engine 6 | . 14 9 14 14 4 . . 2 6 6 . Core 3 | . . . . . 4 7 6 3 . . . Treads 15 | . 28 28 28 28 15 . . . . . . Leg 2 | . . . . . 9 . . . . . . Flight 8 | . . . . . . 29 25 26 26 24 11 Device 3 | . . . . . 3 6 7 6 6 4 . Storage 8 | . 14 14 18 16 9 . . . . . . Processor 5 | . . . . . 7 10 9 13 13 13 13 Hackware 12 | . . . . . 7 26 32 32 33 33 29 Protection 6 | . 13 4 . 7 13 . . . . . . Energy Gun 2 | . . . . . 8 . . . . . . Ballistic Gun 12 | . 28 25 28 28 8 . . . . . . Launcher 1 | . . 2 . . . 6 5 . . . . Slashing Weapon 2 | . . . . . . 7 6 6 6 4 1 Naked Turns . | . . . . . . . . . . . . Heaviest Build 67 | 13 31 33 67 67 59 14 16 14 13 13 5 Greatest Support 84 | 40 40 40 40 40 84 20 20 20 20 20 10 Greatest Overweight (x) 2 | . 1 . 1 1 2 . . . . . . Average Overweight (x) . | . . . . 1 . . . . . . . Largest Inventory Capacity 20 | 8 15 15 20 20 20 20 5 5 5 5 5 Average Capacity 13 | 7 12 15 16 20 20 5 5 5 5 5 5 Most Carried 20 | 3 15 15 15 16 20 20 5 5 5 5 4 Average Carried 11 | 1 10 13 14 15 19 4 4 4 5 4 3 Final Capacity 20 | 8 15 15 20 20 20 5 5 5 5 5 5 Final Carried 20 | 3 15 13 15 16 20 5 3 5 5 4 2 Class Distribution -------------------- 40% | Scavenger-Mutant 30% | Hacker-Scout 26% | Mutant Dominant Class ---------------- Mutant | -10/Materials Mutant | -10/Mines Scavenger-Mutant | -10/Exiles Scavenger-Mutant | -9/Mines Scavenger-Mutant | -8/Materials Hacker-Scout | -7/Factory Hacker-Scout | -6/Factory Hacker-Scout | -6/Extension Hacker-Scout | -6/Cetus Hacker-Scout | -6/Archives Hacker-Scout | -6/Hub_04(d) Resources | -11 -10 -10 -10 -9 -8 -7 -6 -6 -6 -6 -6 ----------- Run | Yrd Mat Min Exi Min Mat Fac Fac Ext Cet Arc Hub Matter Collected 1908 | 228 353 203 . 75 751 110 93 50 . 35 10 Remotely . | . . . . . . . . . . . . Salvage Created 3925 | . 433 86 . 105 2323 261 227 381 . 35 74 Parts 214 | . 37 4 . 4 110 18 16 19 . 4 2 Haulers Intercepted 9 | . 1 . . . 4 1 1 2 . . . Recyclers Shooed 4 | . 1 . . . 3 . . . . . . Parts Field Recycled . | . . . . . . . . . . . . Retrieved Matter . | . . . . . . . . . . . . Parts Self-Destructed . | . . . . . . . . . . . . Prevented . | . . . . . . . . . . . . Kills | -11 -10 -10 -10 -9 -8 -7 -6 -6 -6 -6 -6 ------- Run | Yrd Mat Min Exi Min Mat Fac Fac Ext Cet Arc Hub Combat Hostiles Destroyed 51 | . 11 3 . 3 32 . 1 1 . . . Melee 2 | . . . . . . . 1 1 . . . Guns 48 | . 11 3 . 3 31 . . . . . . AOE 1 | . . . . . 1 . . . . . . Classes Destroyed 14 | . 5 1 . . 8 . . . . . . Worker 8 | . . . . . 6 . . . . . 2 Builder 1 | . . . . . 1 . . . . . . Tunneler 1 | . . . . . 1 . . . . . . Hauler 9 | . 1 . . . 4 1 1 2 . . . Recycler 5 | . . . . . 3 1 . 1 . . . Mechanic 1 | . 1 . . . . . . . . . . Operator 6 | . . . . . 3 1 1 . . 1 . Watcher 13 | . 2 . . . 3 4 2 1 . . 1 Swarmer 8 | . 6 . . 1 . . 1 . . . . Grunt 34 | . 5 2 . 2 25 . . . . . . Brawler 1 | . . . . . 1 . . . . . . Sentry 4 | . . . . . 3 . . 1 . . . Demolisher 1 | . . 1 . . . . . . . . . Hunter 3 | . . . . . 3 . . . . . . Best Kill Streak 12 | . 6 2 . 2 12 3 1 2 . 1 3 Combat Bots Only 5 | . 5 2 . 2 5 . 1 1 . . . Max Kills in Single Turn 3 | . 1 1 . 1 2 1 1 1 . 1 3 Gunslinging . | . . . . . . . . . . . . Exploded 1 | . . . . . 1 . . . . . . Melee 1 | . . . . . . . 1 1 . . . Uniques/NPCs Destroyed . | . . . . . . . . . . . . Combat | -11 -10 -10 -10 -9 -8 -7 -6 -6 -6 -6 -6 -------- Run | Yrd Mat Min Exi Min Mat Fac Fac Ext Cet Arc Hub Hostile Shots Fired 548 | . 55 18 . 32 240 12 39 81 12 30 29 Missed 184 | . 16 2 . 9 59 6 25 32 7 11 17 Damage Taken 5826 | . 397 475 . 292 2773 54 268 390 120 439 618 Core 1468 | . 110 36 . 21 423 . 48 228 52 118 432 Absorbed by Shields 102 | . . . . . . . . 102 . . . Redirected to Shielding 393 | . 17 . . . 376 . . . . . . Regen/Repaired (Parts) 45 | . . . . . . 33 12 . . . . Core Remaining (%) 64 | 100 . . . 33 23 100 . . . . . Volleys Fired 239 | . 52 14 . 20 152 . 1 . . . . Largest 2 | . 2 2 . 2 2 . 1 . . . . Hottest 160 | . 40 40 . 40 160 . 36 . . . . Shots Fired 465 | . 104 21 . 40 299 . 1 . . . . Gun 456 | . 104 14 . 40 298 . . . . . . Cannon . | . . . . . . . . . . . . Launcher 9 | . . 7 . . 1 . 1 . . . . Special . | . . . . . . . . . . . . Kinetic 324 | . 104 14 . 40 166 . . . . . . Thermal 132 | . . . . . 132 . . . . . . Explosive 9 | . . 7 . . 1 . 1 . . . . Electromagnetic . | . . . . . . . . . . . . Robot Hit Streak 18 | . 10 8 . 16 18 . . . . . . Robot Miss Streak 5 | . 5 2 . 2 5 . . . . . . Penetration Max 1 | . . . . . 1 . . . . . . Secondary Targets 14 | . 3 . . 1 10 . . . . . . Max Gunslinging Chain 1 | . 1 . . 1 1 . . . . . . Shots Hit Robots 363 | . 57 16 . 30 221 11 9 17 . 2 . Core Hits 186 | . 30 8 . 9 115 3 4 6 . 1 10 Critical Kills . | . . . . . . . . . . . . Critical Parts Destroyed 1 | . 1 . . . . . . . . . . Critical Strikes 7 | . 1 . . . 4 1 . 1 . . . Burn 4 | . . . . . 4 . . . . . . Destroy 1 | . 1 . . . . . . . . . . Sever 2 | . . . . . . 1 . 1 . . . Melee Attacks 87 | . . . . . 3 31 27 22 1 2 1 Impact . | . . . . . . . . . . . . Slashing 87 | . . . . . 3 31 27 22 1 2 1 Piercing . | . . . . . . . . . . . . Sneak Attacks 12 | . . . . . 2 4 1 4 . 1 . Combat Hostiles . | . . . . . . . . . . . . Follow-up Attacks . | . . . . . . . . . . . . Damage Inflicted 7619 | . 599 175 . 263 4005 569 505 844 . 156 503 Guns 4755 | . 599 118 . 254 3784 . . . . . . Cannons . | . . . . . . . . . . . . Explosions 696 | . . 57 . . 51 . 85 . . . 503 Melee 2144 | . . . . . 155 569 420 844 . 156 . Ramming 24 | . . . . 9 15 . . . . . . Kinetic 2490 | . 599 118 . 254 1519 . . . . . . Thermal 2350 | . . . . . 2265 . 85 . . . . Explosive 108 | . . 57 . . 51 . . . . . . Electromagnetic 503 | . . . . . . . . . . . 503 Impact . | . . . . . . . . . . . . Slashing 2144 | . . . . . 155 569 420 844 . 156 . Piercing . | . . . . . . . . . . . . Highest Corruption 9 | . . . . . . . . 1 1 1 9 Average Corruption 1 | . . . . . . . . 1 1 1 2 Corruption Purged . | . . . . . . . . . . . . Corruption Blocked . | . . . . . . . . . . . . Effects 4 | . . . . . . . . 2 1 . 1 Message Errors 2 | . . . . . . . . 1 1 . . Matter Fused 1 | . . . . . . . . . . . 1 Energy Discharges 1 | . . . . . . . . 1 . . . Overload Shots . | . . . . . . . . . . . . Overflow Damage 497 | . . . . . 21 179 97 46 . 88 66 Projectiles . | . . . . . . . . . . . . Explosions 95 | . . . . . . . 29 . . . 66 Melee 402 | . . . . . 21 179 68 46 . 88 . Knockbacks 1 | . . . . . 1 . . . . . . Impact 1 | . . . . . 1 . . . . . . Kinetic . | . . . . . . . . . . . . Secondary . | . . . . . . . . . . . . Self-Inflicted Damage 265 | . . 16 . . . . 76 . . . 173 Shots 5 | . . 1 . . . . 2 . . . 2 Rammed 2 | . . . . 1 1 . . . . . . Targets Rammed 3 | . . . . 1 2 . . . . . . Kicked 1 | . . . . . 1 . . . . . . Crushed . | . . . . . . . . . . . . Highest Temperature 525 | . 18 34 . 34 525 . 14 2 . 8 . Average Temperature 82 | . 7 17 . 12 104 . 14 2 . 4 . Received Heat Transfer 1914 | . 138 57 . 138 1332 . 36 96 18 99 . Effects 7 | . . . . . 7 . . . . . . Shutdowns 4 | . . . . . 4 . . . . . . Energy Bleed 2 | . . . . . 2 . . . . . . Damage (minor) 1 | . . . . . 1 . . . . . . Siege Activations . | . . . . . . . . . . . . Robots Corrupted . | . . . . . . . . . . . . Combat Hostiles . | . . . . . . . . . . . . Parts Fried 5 | . . . . . . . . . . . 5 Impact Corruptions . | . . . . . . . . . . . . Robots Melted . | . . . . . . . . . . . . Combat Hostiles . | . . . . . . . . . . . . Parts Melted 7 | . . . . . 7 . . . . . . Heat Transferred 4899 | . . . . . 4849 . 50 . . . . Parts Sabotaged . | . . . . . . . . . . . . Parts Stolen . | . . . . . . . . . . . . Parts Stripped . | . . . . . . . . . . . . Power Chain Reactions . | . . . . . . . . . . . . Alert | -11 -10 -10 -10 -9 -8 -7 -6 -6 -6 -6 -6 ------- Run | Yrd Mat Min Exi Min Mat Fac Fac Ext Cet Arc Hub Peak Influence 425 | . 195 80 . 50 425 304 229 88 63 90 401 Initial 193 | . . 5 . . 17 193 117 58 33 25 7 Average 110 | . 72 42 . 40 166 215 89 52 44 39 120 Maximum Alert Level 2 | . . . . . 2 1 1 . . . 2 Low Security (%) 81 | 100 100 100 . 100 66 28 94 100 100 100 75 Level 1 16 | . . . . . 27 71 5 . . . 18 Level 2 1 | . . . . . 6 . . . . . 5 Level 3 . | . . . . . . . . . . . . Level 4 . | . . . . . . . . . . . . Level 5 . | . . . . . . . . . . . . High Security . | . . . . . . . . . . . . Max Security . | . . . . . . . . . . . . Squads Dispatched 22 | . 1 . . . 7 4 9 . . . 1 Investigation 9 | . . . . . 2 3 4 . . . . Extermination 1 | . . . . . . . 1 . . . . Reinforcement 11 | . 1 . . . 4 1 4 . . . 1 Assault . | . . . . . . . . . . . . Garrison 1 | . . . . . 1 . . . . . . Intercept . | . . . . . . . . . . . . Searches Triggered . | . . . . . . . . . . . . Construction Impeded 1 | . . . . . . . . . . . 1 Haulers Reinforced 1 | . . . . . . 1 . . . . . Active Scanning Responses . | . . . . . . . . . . . . Cargo Convoy Interrupts . | . . . . . . . . . . . . Stealth | -11 -10 -10 -10 -9 -8 -7 -6 -6 -6 -6 -6 --------- Run | Yrd Mat Min Exi Min Mat Fac Fac Ext Cet Arc Hub Distress Signals 13 | . 2 . . . 7 . . 1 . . 3 Communications Jammed . | . . . . . . . . . . . . Distress Signals . | . . . . . . . . . . . . Times Spotted 137 | . 19 4 . 6 55 7 13 9 5 5 14 Peak Tracking Total 12 | . 5 2 . 4 8 3 3 4 5 4 12 Tactical Retreats 10 | . . . . . . 3 5 1 . . 1 Traps | -11 -10 -10 -10 -9 -8 -7 -6 -6 -6 -6 -6 ------- Run | Yrd Mat Min Exi Min Mat Fac Fac Ext Cet Arc Hub Traps Triggered 2 | . . . . . . . . 1 . . 1 Indirectly 1 | . . . . . . . . . . . 1 Trap Hack Attempts . | . . . . . . . . . . . . Triggered . | . . . . . . . . . . . . Disarmed . | . . . . . . . . . . . . Reprogrammed . | . . . . . . . . . . . . Reused . | . . . . . . . . . . . . Traps Extracted . | . . . . . . . . . . . . Installed . | . . . . . . . . . . . . Triggered . | . . . . . . . . . . . . Machines | -11 -10 -10 -10 -9 -8 -7 -6 -6 -6 -6 -6 ---------- Run | Yrd Mat Min Exi Min Mat Fac Fac Ext Cet Arc Hub Machines Disabled 19 | . . . . . 3 1 2 . 1 . 12 Max in Single Turn 7 | . . . . . 1 1 2 . 1 . 7 Garrison Access 3 | . . . . . . 1 2 . . . . Network Hub 2 | . . . . . . . . . . . 2 Machines Repaired . | . . . . . . . . . . . . Machines Dismantled . | . . . . . . . . . . . . Machines Sabotaged . | . . . . . . . . . . . . Overloaded Fab Kills . | . . . . . . . . . . . . Hacking | -11 -10 -10 -10 -9 -8 -7 -6 -6 -6 -6 -6 --------- Run | Yrd Mat Min Exi Min Mat Fac Fac Ext Cet Arc Hub Machines Accessed 51 | . 5 . 2 . 7 15 14 5 1 . 2 Terminals 38 | . 4 . . . 5 11 10 5 1 . 2 Fabricators 3 | . . . . . . 2 1 . . . . Repair Stations 3 | . 1 . . . . 1 1 . . . . Recycling Units . | . . . . . . . . . . . . Scanalyzers 2 | . . . . . 2 . . . . . . Garrison Access 3 | . . . . . . 1 2 . . . . Total Hacks 125 | . 11 . 2 . 17 32 43 10 2 . 8 Successful 69 | . 5 . 2 . 12 17 21 5 1 . 6 Failed 56 | . 6 . . . 5 15 22 5 1 . 2 Catastrophic 3 | . 1 . . . . 2 . . . . . Database Lockouts . | . . . . . . . . . . . . Manual 49 | . 7 . 1 . 8 16 15 . . . 2 Terminals 94 | . 9 . . . 9 25 31 10 2 . 8 Fabricators 6 | . . . . . . 4 2 . . . . Repair Stations 8 | . 2 . . . . 2 4 . . . . Recycling Units . | . . . . . . . . . . . . Scanalyzers 8 | . . . . . 8 . . . . . . Garrison Access 7 | . . . . . . 1 6 . . . . Terminal Hacks 35 | . 3 . 2 . 1 6 11 5 1 . 6 Record 8 | . . . 1 . . 4 1 . . . 2 Part Schematic 3 | . . . . . . . 3 . . . . Robot Analysis 5 | . 3 . . . 1 1 . . . . . Open Door 6 | . . . . . . . 1 4 1 . . Level Access Points 2 | . . . . . . 1 . . . . 1 Branch Access Points 3 | . . . . . . . 1 1 . . 1 Emergency Access Points 1 | . . . . . . . . . . . 1 Terminal Index 1 | . . . . . . . 1 . . . . Garrison Index 1 | . . . . . . . 1 . . . . Recall Investigation 2 | . . . . . . . 2 . . . . Recall Extermination 1 | . . . . . . . 1 . . . . Zone Layout 1 | . . . . . . . . . . . 1 Derelict Proto ID Bank 1 | . . . 1 . . . . . . . . Fabricator Hacks 6 | . . . . . . 4 2 . . . . Load Schematic 3 | . . . . . . 2 1 . . . . Build 3 | . . . . . . 2 1 . . . . Repair Station Hacks 7 | . 1 . . . . 2 4 . . . . Scan Component 4 | . 1 . . . . 1 2 . . . . Repair 3 | . . . . . . 1 2 . . . . Recycling Unit Hacks . | . . . . . . . . . . . . Scanalyzer 8 | . . . . . 8 . . . . . . Insert Component 3 | . . . . . 3 . . . . . . Analyze 5 | . . . . . 5 . . . . . . Garrison Access Hacks 3 | . . . . . . 1 2 . . . . Seal Access 3 | . . . . . . 1 2 . . . . Unauthorized Hacks 10 | . 1 . . . 3 4 2 . . . . Terminals 10 | . 1 . . . 3 4 2 . . . . Assimilate 3 | . . . . . 2 . 1 . . . . Botnet 3 | . . . . . . 3 . . . . . Operators 4 | . 1 . . . 1 1 1 . . . . Fabricators . | . . . . . . . . . . . . Repair Stations . | . . . . . . . . . . . . Recycling Units . | . . . . . . . . . . . . Scanalyzers . | . . . . . . . . . . . . Garrison Access . | . . . . . . . . . . . . Data Cores Recovered 1 | . . . . . . . 1 . . . . Used . | . . . . . . . . . . . . Hacking Detections 37 | . 4 . . . 6 12 13 1 . . 1 Full Trace Events 10 | . 1 . . . 2 3 4 . . . . Feedback Events 1 | . . . . . . . 1 . . . . Hackware Fried 1 | . . . . . . . 1 . . . . Feedback Blocked . | . . . . . . . . . . . . Robot Schematics Acquired . | . . . . . . . . . . . . Robots Built . | . . . . . . . . . . . . Authchips . | . . . . . . . . . . . . Time . | . . . . . . . . . . . . Total Robot Build Rating . | . . . . . . . . . . . . Part Schematics Acquired 6 | . . . . . 3 . 3 . . . . Parts Built 3 | . . . . . . 2 1 . . . . Authchips . | . . . . . . . . . . . . Time 147 | . . . . . . 116 31 . . . . Total Part Build Rating 11 | . . . . . . 6 5 . . . . Parts Repaired 3 | . . . . . . 1 2 . . . . Time 98 | . . . . . . 12 86 . . . . Parts Recycled . | . . . . . . . . . . . . Recycled Matter . | . . . . . . . . . . . . Retrieved Matter . | . . . . . . . . . . . . Retrieved Components . | . . . . . . . . . . . . Parts Scanalyzed 3 | . . . . . 3 . . . . . . Part Schematics Acquired 3 | . . . . . 3 . . . . . . Parts Damaged . | . . . . . . . . . . . . Bothacking | -11 -10 -10 -10 -9 -8 -7 -6 -6 -6 -6 -6 ------------ Run | Yrd Mat Min Exi Min Mat Fac Fac Ext Cet Arc Hub Used RIF Installer . | . . . . . . . . . . . . Robots Hacked . | . . . . . . . . . . . . Non-combat . | . . . . . . . . . . . . Combat . | . . . . . . . . . . . . Robot Hacks Applied . | . . . . . . . . . . . . Relay Couplers Released . | . . . . . . . . . . . . Fabnet Peak Effective % . | . . . . . . . . . . . . Robots Rewired . | . . . . . . . . . . . . Allies Hacked . | . . . . . . . . . . . . Hacks Repelled . | . . . . . . . . . . . . Allies | -11 -10 -10 -10 -9 -8 -7 -6 -6 -6 -6 -6 -------- Run | Yrd Mat Min Exi Min Mat Fac Fac Ext Cet Arc Hub Total Allies 11 | . . . . 5 1 . 1 4 . . . Largest Group 5 | . . . . 5 5 . 1 3 . . . Highest-Rated Group 159 | . . . . 83 83 . 9 159 . . . Highest-Rated Ally 159 | . . . . 31 31 . 9 159 . . . Total Orders . | . . . . . . . . . . . . Ally Attacks 98 | . . . . 13 64 . . 21 . . . Total Damage 1135 | . . . . 128 584 . . 423 . . . Kills 10 | . . . . 1 8 . . 1 . . . Allies Corrupted . | . . . . . . . . . . . . Allies Melted 1 | . . . . . . . . 1 . . . Intel | -11 -10 -10 -10 -9 -8 -7 -6 -6 -6 -6 -6 ------- Run | Yrd Mat Min Exi Min Mat Fac Fac Ext Cet Arc Hub Robot Analysis Total 5 | . 3 . . . 1 1 . . . . . Derelict Logs Recovered 3 | . . 1 . 2 . . . . . . . Drone Launches . | . . . . . . . . . . . . Drone Recoveries . | . . . . . . . . . . . . Exploration | -11 -10 -10 -10 -9 -8 -7 -6 -6 -6 -6 -6 ------------- Run | Yrd Mat Min Exi Min Mat Fac Fac Ext Cet Arc Hub Turns Passed 7552 | 57 1105 541 454 751 2160 753 887 647 77 35 85 Spaces Moved 6289 | 33 500 309 255 289 850 1234 1130 1171 182 100 236 Core 7 | 6 . . . . . . . . . . 1 Treads 1913 | 27 500 309 255 289 533 . . . . . . Legs 317 | . . . . . 317 . . . . . . Wheels . | . . . . . . . . . . . . Hover . | . . . . . . . . . . . . Flight 4052 | . . . . . . 1234 1130 1171 182 100 235 Fastest Speed 26 | 50 160 160 160 240 158 26 26 26 26 26 32 Average Speed 81 | 140 177 160 176 240 174 26 26 26 26 27 32 Slowest Speed 265 | 160 240 160 240 240 265 26 26 26 26 32 50 Overloaded Moves . | . . . . . . . . . . . . Propulsion Burnouts . | . . . . . . . . . . . . Robots Hopped 25 | . . . . . . 2 2 21 . . . Cave-ins Triggered . | . . . . . . . . . . . . Exploration Rate (%) 56 | 4 64 85 61 70 56 44 29 69 78 80 36 Regions Visited 11 Branch Regions 7 Pre-discovered Areas 2 | . . . 1 1 . . . . . . . Known Exits Taken 4 | . . . . . 1 1 1 1 . . . Unknown Exits Taken 7 | 1 1 1 1 1 . . . . 1 1 . Scrap Searched 3 | . . 1 . 2 . . . . . . . Spaces Dug 31 | . . . . . . 16 14 1 . . . Terrain Destroyed 440 | . . 36 . . 10 16 59 1 . . 318 Melee 31 | . . . . . . 16 14 1 . . . Projectile 1 | . . . . . 1 . . . . . . AOE 408 | . . 36 . . 9 . 45 . . . 318 Terrain Rammed . | . . . . . . . . . . . . Walls Destroyed . | . . . . . . . . . . . . Machines Disabled . | . . . . . . . . . . . . Actions | -11 -10 -10 -10 -9 -8 -7 -6 -6 -6 -6 -6 --------- Run | Yrd Mat Min Exi Min Mat Fac Fac Ext Cet Arc Hub Total 8117 | 41 625 336 258 313 1235 1623 1677 1457 208 103 241 Wait 1299 | . 39 7 . . 128 327 503 271 24 . . Move 6232 | 32 499 308 254 288 849 1229 1126 1131 181 99 236 Hop 21 | . . . . . . 2 1 18 . . . Pick Up 61 | 3 15 2 1 1 28 6 3 2 . . . Fast Attach 31 | 6 2 . 1 . 12 2 5 1 . . 2 Attach 27 | . . 3 . . 11 7 3 . . 1 2 Detach 3 | . . . . . 1 . 2 . . . . Swap 46 | . 8 1 1 2 23 2 3 3 2 1 . Drop 60 | . 10 1 1 1 26 17 3 1 . . . Fire 239 | . 52 14 . 20 152 . 1 . . . . Melee 87 | . . . . . 3 31 27 22 1 2 1 Ram . | . . . . . . . . . . . . Kick 1 | . . . . . 1 . . . . . . Crush 2 | . . . . 1 1 . . . . . . Escape Stasis 8 | . . . . . . . . 8 . . . Rewire . | . . . . . . . . . . . . Trap . | . . . . . . . . . . . . Miscellaneous . | . . . . . . . . . . . . Route ------- -11/Scrapyard -10/Materials (discovered 3 exits: [*Mat x2] / [*Min]) -10/Mines (discovered 3 exits: [*Mat x2] / *Exi) -10/Exiles -9/Mines -8/Materials (discovered 3 exits: *Fac x3) -7/Factory (discovered 5 exits: *Fac x4 / [*Low]) -6/Factory (discovered 5 exits: *Fac / *Low x2 / *Ext x2) -6/Extension (discovered 3 exits: *Fac x2 / *Cet) -6/Cetus (discovered 2 exits: *Fac / *Arc) -6/Archives (discovered 2 exits: *Hub x2) -6/Hub_04(d) (discovered 4 exits: *Fac x4) History --------- Turn | Location | Event 2 | -11/Scrapyard | Met Revision 17 23 | -11/Scrapyard | Discovered new exit (range 16) 58 | -11/Scrapyard | Entered Materials 300 | -10/Materials | Build established: Mutant 424 | -10/Materials | Discovered new exit (range 15) 429 | -10/Materials | Discovered new exit (range 12) 871 | -10/Materials | Discovered new exit (range 6) 1163 | -10/Materials | Entered Mines 1215 | -10/Mines | Assembled infested the area 1220 | -10/Mines | Assisted by a Guerilla fighting off Assembled 1322 | -10/Mines | Received a Rocket Launcher from a helpful Derelict 1337 | -10/Mines | Core integrity fell below 50% 1348 | -10/Mines | Discovered new exit (range 5) 1367 | -10/Mines | Lost 4 parts (1p1u2w) 1441 | -10/Mines | Discovered new exit (range 8) 1616 | -10/Mines | Learned Materials security intel 1697 | -10/Mines | Deemed a non-threat by the Exiles lab entrance 1697 | -10/Mines | Discovered new exit (range 5) 1704 | -10/Mines | Entered Exiles 1743 | -10/Exiles | Met 8R-AWN 1770 | -10/Exiles | Met EX-HEX 1814 | -10/Exiles | Build established: Scavenger-Mutant 1823 | -10/Exiles | Met EX-BIN 1840 | -10/Exiles | Aligned with FarCom system 1842 | -10/Exiles | Given EX-Vault access code 1885 | -10/Exiles | Opened EX-Vault 1898 | -10/Exiles | Found AWS/Gauss 1931 | -10/Exiles | Warned to stay clear of 0b10 Research branches 1977 | -10/Exiles | Met EX-DEC 1987 | -10/Exiles | Learned location of Zion (-7) 2096 | -10/Exiles | Discovered new exit (range 14) 2158 | -10/Exiles | Left Exiles lab with AWS/Gauss 2158 | -10/Exiles | Entered Mines 2317 | -9/Mines | Learned location of 1 exit from Materials 2383 | -9/Mines | Learned location of Storage (-7) 2517 | -9/Mines | Found a hidden stash of uninstalled traps 2686 | -9/Mines | Assisted by bots powering up and referring to "LRC-V3" 2689 | -9/Mines | Learned location of 1 exit from Materials 2889 | -9/Mines | Discovered new exit (range 8) 2909 | -9/Mines | Entered Materials 2909 | -8/Materials | Accompanied by 5 allies 2909 | -8/Materials | Evolved 4 slots: Propulsion x1, Utility x3 2910 | -8/Materials | Identified exit to Factory 2914 | -8/Materials | Led the pair of lost Derelicts to an unsafe place 3141 | -8/Materials | Lost 3 allies 3208 | -8/Materials | Lost 3 parts (1p1n1w) 3606 | -8/Materials | Discovered exit to Factory (range 9) 3849 | -8/Materials | Core integrity fell below 50% 4626 | -8/Materials | Lost 3 parts (1p1n1w) 4898 | -8/Materials | Garrison activated, responded to threat 4984 | -8/Materials | Build established: Mutant 5069 | -8/Materials | Entered Factory 5069 | -7/Factory | Evolved 2 slots: Propulsion x1, Utility x1 5265 | -7/Factory | Repaired Missile Launcher 5281 | -7/Factory | Identified exit to Factory 5362 | -7/Factory | Build established: Hacker-Scout 5365 | -7/Factory | Fabricated Imp. VTOL Module (x1) 5553 | -7/Factory | Fabricated Imp. VTOL Module (x1) 5575 | -7/Factory | Discovered new exit (range 15) 5822 | -7/Factory | Entered another Factory area 5822 | -6/Factory | Evolved 2 slots: Utility x2 5854 | -6/Factory | Repaired Structural Scanner 5915 | -6/Factory | Repaired Imp. VTOL Module 6044 | -6/Factory | Fabricated Imp. Hacking Suite (x1) 6163 | -6/Factory | Identified exit to Lower Caves 6163 | -6/Factory | Identified exit to Extension 6170 | -6/Factory | Discovered new exit (range 16) 6618 | -6/Factory | Hacking Suite fried by hacking feedback 6672 | -6/Factory | Lost 3 parts (1p1u1w) 6709 | -6/Factory | Entered Extension 6728 | -6/Extension | Identified exit to Cetus 6759 | -6/Extension | Rescued a captive Derelict 6759 | -6/Extension | Rescued a captive Derelict 6762 | -6/Extension | Rescued a captive Derelict 6769 | -6/Extension | Spotted B-75 Beast 7142 | -6/Extension | Rescued A7 7306 | -6/Extension | Spotted B-75 Beast 7315 | -6/Extension | Discovered new exit (range 3) 7339 | -6/Extension | Discovered new exit (range 22) 7356 | -6/Extension | Entered Cetus 7363 | -6/Cetus | Spotted Cetus Guard 7390 | -6/Cetus | Spotted Cetus Guard 7390 | -6/Cetus | Spotted Cetus Guard 7390 | -6/Cetus | Spotted Cetus Guard 7395 | -6/Cetus | Discovered new exit (range 21) 7428 | -6/Cetus | Discovered new exit (range 22) 7433 | -6/Cetus | Entered Archives 7449 | -6/Archives | Discovered new exit (range 22) 7451 | -6/Archives | Unable to access archive contents 7462 | -6/Archives | Discovered new exit (range 22) 7464 | -6/Archives | Core integrity fell below 50% 7468 | -6/Archives | Entered Hub_04(d) 7480 | -6/Hub_04(d) | Identified exit to Factory 7497 | -6/Hub_04(d) | Lost 7 parts (2p2n2u1w) 7532 | -6/Hub_04(d) | Network Hub disabled 7535 | -6/Hub_04(d) | Network Hub disabled 7535 | -6/Hub_04(d) | Spotted Lightning 7535 | -6/Hub_04(d) | Spotted Lightning 7538 | -6/Hub_04(d) | Spotted Lightning 7544 | -6/Hub_04(d) | Core integrity fell below 20% 7550 | -6/Hub_04(d) | Spotted Lightning 7550 | -6/Hub_04(d) | Spotted Lightning 7550 | -6/Hub_04(d) | Spotted Lightning 7553 | -6/Hub_04(d) | Destroyed by Lightning with EMDS Last Messages --------------- Penetrated by EMDS Slug. ALERT: Construction progress impeded, dispatching reinforcements to local area. EMDS Slug penetrates Wall. Greatsword destroyed. EMDS Slug penetrates Wall. Imp. VTOL Module destroyed. EMDS Slug penetrates Wall. P-60 Hacker resets I-47 Archangel, system corruption cleaned. Penetrated by EMDS Slug. Imp. VTOL Module destroyed. EMDS Slug penetrates Wall. System corrupted: Matter fused (-7). W-25 Informer sends out distress signal. EMDS Slug penetrates Wall. Penetrated by EMDS Slug. Slug penetrates Wall. Acquired 10 matter. Penetrated by EMDS Slug. Map ----- +----------------------------------------------------+ | #?????????????????????????????????????? | | #?????????????????????????????????????? | | """"""""" #?????????????????????????????????????? | | " #?????????????????????????????????????? | | " #?????????????????????????????????????? | | " #?????????????????????????????????????? | | " #??????????###????????????????????????? | | " #???? ###### ########????????????????? | | " #???# # ##???????????????? | | ##### ; #???????????????? | | ;;;;;;;;;;;;;;;;;;;; #???????????????? | | ] ; ! ; #???????????????? | | ; ; #???????????????? | | ; ; ; #???????????????? | | ; ; % ; #???????????????? | | " ; ; #?"?"???????????? | | # " ; ; #?"?"???????????? | | "#### " ; ; #?"?"???????????? | | "#####" ; !; #???????????????? | | " ; ; ????????????????? | | " ; ; ?????????????????? | | " !< "";;;;;;;;;;;#??#####??????????? | | " " ; ; ; ? ???????????? | | # #" " ] # ; ; # "? " " #???